Cogmind - Beta 12 @@@ ROGUE MODE // 2023.07.30 @ 20:51:54 Player: wchar_t Result: Destroyed self with Latent Energy Streamer Performance ------------- Evolutions (3) 1500 Regions Visited (12) 2400 Robots Destroyed (71) 355 Value Destroyed (3132) 3132 Prototype IDs (34) 680 Alien Tech Used (0) 0 Bonus (1898) 1898 TOTAL SCORE: 9965 Bonus ------- High Alert Combat Kills 33 Follower Combat Kills 100 Aligned with FarCom 300 Destroyed Z-Imprinter 1000 Triggered Deep Caves Wall 500 Friendly Fire -35 Cogmind --------- Core Integrity 0/700 Matter 160/300 Energy 275/700 System Corruption 11% Temperature Cool (0) Movement Walking (186) Ox1 Location -7/Deep Caves Parts ------- > --- POWER (1) -------- (None) > --- PROPULSION (5) --- Improved Titanium Leg Assembled Alloy Leg Assembled Alloy Leg > --- UTILITY (5) ------ Huge Storage Unit Zionite Biocell GOLEM Unit > --- WEAPON (2) ------- Latent Energy Streamer > --- INVENTORY (25) --- Zionite Light DM Reactor Armored Huge Wheel Experimental Heat Sink Zionite Biocell (0) Improved Reaction Control System Improved Reaction Control System Mobile Refinery Mk. CCLXVII Peak State ------------ > --- POWER ------------ Zionite Light DM Reactor > --- PROPULSION ------- Improved Titanium Leg Assembled Alloy Leg Assembled Alloy Leg Armored Huge Wheel > --- UTILITY ---------- Huge Storage Unit Zionite Weapon Casing Zionite Light Carapace GOLEM Unit > --- WEAPON ----------- Rocket Launcher > --- INVENTORY -------- Zionite Light DM Reactor Armored Huge Wheel Experimental Heat Sink Zionite Biocell Zionite Biocell Improved Reaction Control System Improved Reaction Control System Mobile Refinery Mk. CCLXVII Latent Energy Streamer Rocket Launcher [Rating: 75] Favorites ----------- Power Improved Deuterium Engine Engine Improved Deuterium Engine Power Core Micro Nuclear Core Reactor Zionite Light DM Reactor Propulsion Armored Huge Wheel Leg Improved Titanium Leg Wheel Armored Huge Wheel Utility Huge Storage Unit Device Improved Cooling System Storage Huge Storage Unit Processor Advanced Targeting Computer Hackware System Shield Protection Hardened Heavy Armor Plating Weapon Plasma Cannon Energy Gun Medium Laser Energy Cannon Plasma Cannon Ballistic Gun Autogun Ballistic Cannon Gauss Cannon Launcher Rocket Launcher Impact Weapon Power Maul Build | -11 -10 -10 -10 -9 -8 -7 -7 -7 -7 -7 -7 -7 ------- Run | Jun Mat Min Exi Min Mat Fac Was Fac Low Low Zio Dee Slots Evolved 6 | . . . . . 4 2 . . . . . . Power . | . . . . . . . . . . . . . Propulsion 3 | . . . . . 2 1 . . . . . . Utility 3 | . . . . . 2 1 . . . . . . Weapon . | . . . . . . . . . . . . . Parts Attached 169 | 7 . 5 9 3 6 54 1 18 5 . 5 56 Power 8 | 1 . . 1 . . 3 . 1 . . . 2 Engine 5 | 1 . . 1 . . 2 . 1 . . . . Core 2 | . . . . . . 1 . . . . . 1 Reactor 1 | . . . . . . . . . . . . 1 Propulsion 30 | 2 . 1 2 . 3 12 1 2 . . . 7 Treads . | . . . . . . . . . . . . . Leg 20 | 2 . 1 2 . 3 7 . 1 . . . 4 Wheel 10 | . . . . . . 5 1 1 . . . 3 Hover . | . . . . . . . . . . . . . Flight . | . . . . . . . . . . . . . Utility 62 | 1 . 2 1 . 2 13 . 5 3 . 3 32 Device 22 | . . 1 . . 1 6 . 3 1 . 1 9 Storage 7 | 1 . . 1 . . 1 . . . . . 4 Processor 6 | . . 1 . . . 2 . 1 1 . 1 . Hackware 1 | . . . . . . 1 . . . . . . Protection 26 | . . . . . 1 3 . 1 1 . 1 19 Artifact . | . . . . . . . . . . . . . Weapon 69 | 3 . 2 5 3 1 26 . 10 2 . 2 15 Energy Gun 5 | 2 . 1 1 . . . . . . . . 1 Energy Cannon 32 | . . . 1 . 1 17 . 6 . . 1 6 Ballistic Gun 6 | 1 . . 2 2 . 1 . . . . . . Ballistic Cannon 6 | . . . . . . 1 . 1 1 . 1 2 Launcher 11 | . . 1 1 1 . 1 . 1 . . . 6 Special Weapon . | . . . . . . . . . . . . . Impact Weapon 9 | . . . . . . 6 . 2 1 . . . Slashing Weapon . | . . . . . . . . . . . . . Piercing Weapon . | . . . . . . . . . . . . . Special Melee Weapon . | . . . . . . . . . . . . . Unidentified Prototypes 9 | . . . . . . 1 . . . . . 8 Parts Lost 35 | . . . 1 . . 2 1 . . . . 31 Power 4 | . . . . . . 1 . . . . . 3 Propulsion 7 | . . . . . . . . . . . . 7 Utility 17 | . . . . . . 1 1 . . . . 15 Weapon 7 | . . . 1 . . . . . . . . 6 Highest Loss Streak 9 | . . . 1 . . 1 1 . . . . 9 To Critical Strikes . | . . . . . . . . . . . . . Average Slot Usage (%) 78 | . 85 97 78 98 85 76 68 71 83 84 76 77 Engine 5 | . 14 14 9 14 9 4 7 7 7 7 7 . Core 1 | . . . . . . 2 . . . . . 4 Leg 11 | . 28 28 21 28 34 5 8 7 7 7 7 18 Wheel 11 | . . . . . . 18 14 15 15 15 15 5 Device 6 | . . 10 . . 1 7 4 5 7 7 1 10 Storage 7 | . 14 14 10 14 9 7 7 7 7 7 7 6 Processor 8 | . . 1 14 14 9 7 7 7 14 15 13 6 Protection 6 | . . . . . 4 6 4 5 6 7 7 8 Energy Gun 1 | . 14 13 9 14 7 . . . . . . 1 Energy Cannon 8 | . . . . . 2 12 11 7 10 7 6 6 Ballistic Gun 1 | . 14 14 9 10 9 1 . . . . . . Impact Weapon 1 | . . . . . . 1 . . 2 7 5 . Naked Turns . | . . . . . . . . . . . . . Heaviest Build 127 | 14 14 15 19 20 39 127 114 126 125 104 126 126 Greatest Support 80 | 20 20 20 20 20 43 68 56 56 56 56 56 80 Greatest Overweight (x) 6 | . . . 1 . . 3 2 2 2 1 2 6 Average Overweight (x) 1 | . . . . . . 1 1 1 1 1 1 1 Largest Inventory Capacity 25 | 8 8 8 10 10 10 25 25 25 25 25 25 25 Average Capacity 22 | 6 8 8 7 10 10 24 25 25 25 25 25 24 Most Carried 25 | 4 8 8 8 9 10 25 25 25 25 25 25 25 Average Carried 20 | 1 4 8 6 8 9 24 24 24 24 25 24 16 Final Capacity 25 | 8 8 8 10 10 10 25 25 25 25 25 25 25 Final Carried 25 | 4 8 8 7 9 10 25 25 25 25 25 25 8 Class Distribution -------------------- 90% | Mutant 6% | Scavenger-Assassin Dominant Class ---------------- Mutant | -10/Materials Mutant | -10/Mines Mutant | -10/Exiles Mutant | -9/Mines Mutant | -8/Materials Mutant | -7/Factory Mutant | -7/Waste Mutant | -7/Factory Scavenger-Skirmisher | -7/Lower Caves Scavenger-Assassin | -7/Lower Caves Mutant | -7/Zion Mutant | -7/Deep Caves Resources | -11 -10 -10 -10 -9 -8 -7 -7 -7 -7 -7 -7 -7 ----------- Run | Jun Mat Min Exi Min Mat Fac Was Fac Low Low Zio Dee Matter Collected 2724 | 182 82 60 . 19 104 907 . 527 82 44 40 677 Remotely . | . . . . . . . . . . . . . Salvage Created 3199 | . 99 5 . . . 1647 . 723 . . . 725 Parts 145 | . 7 4 . . . 76 . 43 . . . 15 Haulers Intercepted 2 | . . . . . . 2 . . . . . . Recyclers Shooed 3 | . . 1 . . . 2 . . . . . . Parts Field Recycled . | . . . . . . . . . . . . . Retrieved Matter . | . . . . . . . . . . . . . Parts Self-Destructed 4 | . . . . . . . . . . 3 1 . Prevented . | . . . . . . . . . . . . . Kills | -11 -10 -10 -10 -9 -8 -7 -7 -7 -7 -7 -7 -7 ------- Run | Jun Mat Min Exi Min Mat Fac Was Fac Low Low Zio Dee Combat Hostiles Destroyed 89 | . 2 2 . . . 24 . 12 . . . 49 Melee 1 | . . . . . . 1 . . . . . . Guns 3 | . 2 . . . . 1 . . . . . . Cannons 35 | . . . . . . 19 . 10 . . . 6 AOE 45 | . . 2 . . . 1 . 2 . . . 40 Classes Destroyed 15 | . 2 1 . . . 7 . 1 . . . 4 Worker 2 | . . . . . . 1 . 1 . . . . Builder 3 | . . . . . . 3 . . . . . . Hauler 2 | . . . . . . 2 . . . . . . Recycler 6 | . . . . . . 3 . 3 . . . . Watcher 6 | . 1 . . . . 4 . 1 . . . . Swarmer 7 | . . 2 . . . 2 . 3 . . . . Grunt 15 | . 2 . . . . 11 . 2 . . . . Duelist 1 | . . . . . . . . 1 . . . . Sentry 6 | . . . . . . 2 . 4 . . . . Hunter 1 | . . . . . . 1 . . . . . . Programmer 10 | . . . . . . 8 . 2 . . . . Z-Light 7 | . . . . . . . . . . . . 7 Assembler 2 | . . . . . . . . . . . . 2 Assembled 39 | . . . . . . . . . . . . 39 Golem 2 | . . . . . . . . . . . . 2 Best Kill Streak 38 | . 3 2 . . . 7 . 5 . . . 38 Combat Bots Only 36 | . 2 2 . . . 4 . 3 . . . 36 Max Kills in Single Turn 20 | . 1 2 . . . 2 . 2 . . . 20 Gunslinging . | . . . . . . . . . . . . . Exploded 20 | . . 2 . . . 1 . 1 . . . 20 Melee 1 | . . . . . . 1 . . . . . . Uniques/NPCs Destroyed 1 | . . . . . . . . . . . . 1 Z-Imprinter (-7/Deep Caves) Combat | -11 -10 -10 -10 -9 -8 -7 -7 -7 -7 -7 -7 -7 -------- Run | Jun Mat Min Exi Min Mat Fac Was Fac Low Low Zio Dee Damage Taken 9284 | . 52 116 216 . 49 2124 153 970 . . . 5604 Core 765 | . . 33 16 . . 147 . 50 . . . 519 Absorbed by Shields . | . . . . . . . . . . . . . Redirected to Shielding 451 | . . . . . . . . . . . . 451 Regen/Repaired (Parts) 248 | . . . . . . 40 . . . . 208 . Core Remaining (%) 93 | 100 . . . 80 100 . . . . . . . Volleys Fired 236 | . 7 5 . 7 3 103 . 33 4 . . 74 Largest 2 | . 2 2 . 2 2 2 . 2 2 . . 2 Hottest 145 | . 70 70 . 80 98 145 . 140 140 . . 129 Shots Fired 384 | . 14 10 . 15 6 177 . 56 7 2 . 97 Gun 55 | . 14 8 . 8 3 16 . . . . . 6 Cannon 294 | . . . . . 3 159 . 54 7 2 . 69 Launcher 35 | . . 2 . 7 . 2 . 2 . . . 22 Special . | . . . . . . . . . . . . . Kinetic 79 | . 7 5 . . 3 16 . 25 1 . . 22 Thermal 242 | . 7 3 . 8 3 159 . 29 6 2 . 25 Explosive 35 | . . 2 . 7 . 2 . 2 . . . 22 Electromagnetic 22 | . . . . . . . . . . . . 22 Phasic 6 | . . . . . . . . . . . . 6 Robot Hit Streak 23 | . 7 3 . 1 3 22 . 23 . . . 8 Robot Miss Streak 5 | . 3 3 . . 1 2 . 3 . . . 5 Penetration Max . | . . . . . . . . . . . . . Secondary Targets . | . . . . . . . . . . . . . Shots Hit Robots 222 | . 8 4 . 1 4 116 . 35 . . . 54 Core Hits 194 | . 5 6 . . 1 51 . 24 . . . 107 Critical Kills 2 | . . . . . . . . 1 . . . 1 Critical Parts Destroyed 5 | . . . . . . 5 . . . . . . Critical Strikes 12 | . . . . . . 5 . 2 . . . 5 Meltdown 2 | . . . . . . . . 1 . . . 1 Blast 4 | . . . . . . . . 1 . . . 3 Corrupt 1 | . . . . . . . . . . . . 1 Smash 5 | . . . . . . 5 . . . . . . Melee Attacks 46 | . . . . . . 36 . . 1 . 9 . Impact 46 | . . . . . . 36 . . 1 . 9 . Slashing . | . . . . . . . . . . . . . Piercing . | . . . . . . . . . . . . . Sneak Attacks 3 | . . . . . . 3 . . . . . . Combat Hostiles . | . . . . . . . . . . . . . Follow-up Attacks . | . . . . . . . . . . . . . Damage Inflicted 10633 | . 121 191 . 13 72 4027 . 1271 . . . 4938 Guns 370 | . 121 45 . 13 47 144 . . . . . . Cannons 4548 | . . . . . 25 2467 . 967 . . . 1089 Explosions 4627 | . . 132 . . . 371 . 275 . . . 3849 Melee 826 | . . . . . . 826 . . . . . . Ramming 262 | . . 14 . . . 219 . 29 . . . . Kinetic 1012 | . 60 20 . . 47 144 . 358 . . . 383 Thermal 3614 | . 61 25 . 13 25 2467 . 609 . . . 414 Explosive 4202 | . . 132 . . . 371 . 275 . . . 3424 Electromagnetic 717 | . . . . . . . . . . . . 717 Impact 826 | . . . . . . 826 . . . . . . Slashing . | . . . . . . . . . . . . . Piercing . | . . . . . . . . . . . . . Highest Corruption 19 | . . . 2 2 . 9 19 19 15 15 15 8 Average Corruption 9 | . . . 1 2 . 5 17 16 15 15 15 6 Corruption Purged 5 | . . . . . . . . 5 . . . . Corruption Blocked . | . . . . . . . . . . . . . Effects 205 | . . . 1 6 . 95 6 54 26 15 1 1 Message Errors 47 | . . . . 2 . 19 1 13 6 5 1 . Matter Fused 50 | . . . . 2 . 27 . 12 7 2 . . Heat Flow Errors 28 | . . . . 1 . 16 1 8 . 2 . . Energy Discharges 19 | . . . . . . 8 2 5 2 1 . 1 Parts Rejected 3 | . . . 1 . . 2 . . . . . . Parts Fused 3 | . . . . . . . . . . 3 . . Data Loss (minor) 27 | . . . . . . 13 1 5 8 . . . Data Loss (major) 7 | . . . . . . 2 . 5 . . . . Misfires 6 | . . . . 1 . 2 . . 1 2 . . Alerts 6 | . . . . . . 3 . 3 . . . . Misdirections 1 | . . . . . . . 1 . . . . . Weapon Failures 8 | . . . . . . 3 . 3 2 . . . Overload Shots . | . . . . . . . . . . . . . Overflow Damage 702 | . . . . . . 594 . 21 . . . 87 Projectiles 82 | . . . . . . 67 . 13 . . . 2 Explosions 93 | . . . . . . . . 8 . . . 85 Melee 527 | . . . . . . 527 . . . . . . Knockbacks 18 | . . . . . . 8 . 4 . . . 6 Impact 8 | . . . . . . 8 . . . . . . Kinetic 8 | . . . . . . . . 2 . . . 6 Secondary 2 | . . . . . . . . 2 . . . . Self-Inflicted Damage 378 | . . 70 . . . 107 . 14 . . . 187 Shots 6 | . . 2 . . . . . . . . . 4 Rammed 16 | . . . . . . 13 . 3 . . . . Targets Rammed 17 | . . 1 . . . 13 . 3 . . . . Kicked 1 | . . 1 . . . . . . . . . . Crushed . | . . . . . . . . . . . . . Highest Temperature 424 | . 84 39 . 126 143 424 93 251 126 229 . 207 Average Temperature 59 | . 46 19 . 59 74 51 52 64 46 87 . 76 Received Heat Transfer 2128 | . 30 24 . . 9 528 . 189 . . . 1348 Effects 5 | . . . . . . 1 . . . 3 . 1 Interference 4 | . . . . . . . . . . 3 . 1 Damage (minor) 1 | . . . . . . 1 . . . . . . Siege Activations . | . . . . . . . . . . . . . Robots Corrupted 2 | . . . . . . . . . . . . 2 Combat Hostiles 2 | . . . . . . . . . . . . 2 Parts Fried 3 | . . . . . . 1 . . . . . 2 Impact Corruptions 21 | . . . . . . 20 . 1 . . . . Robots Melted 2 | . . . . . . . . 1 . . . 1 Combat Hostiles 1 | . . . . . . . . . . . . 1 Parts Melted 12 | . . . . . . 6 . 2 . . . 4 Heat Transferred 5749 | . 185 74 . 37 37 3684 . 1122 . . . 610 Parts Sabotaged . | . . . . . . . . . . . . . Parts Stolen . | . . . . . . . . . . . . . Parts Stripped . | . . . . . . . . . . . . . Power Chain Reactions . | . . . . . . . . . . . . . Missiles Intercepted . | . . . . . . . . . . . . . Latent Energy Used 508 | . . . . . . . . . . . . 508 LE Corruption 10 | . . . . . . . . . . . . 10 Alert | -11 -10 -10 -10 -9 -8 -7 -7 -7 -7 -7 -7 -7 ------- Run | Jun Mat Min Exi Min Mat Fac Was Fac Low Low Zio Dee Peak Influence 478 | . 47 198 . 16 49 478 193 349 . . . . Initial 163 | . . 18 . . 5 21 163 128 . . . . Average 165 | . 15 139 . 4 8 182 180 221 . . . . Maximum Alert Level 2 | . . . . . . 2 . 1 . . . . Low Security (%) 62 | 100 100 100 . 100 100 59 100 31 . . . . Level 1 29 | . . . . . . 27 . 68 . . . . Level 2 8 | . . . . . . 12 . . . . . . Level 3 . | . . . . . . . . . . . . . Level 4 . | . . . . . . . . . . . . . Level 5 . | . . . . . . . . . . . . . High Security . | . . . . . . . . . . . . . Max Security . | . . . . . . . . . . . . . Squads Dispatched 19 | . . . . . . 16 . 3 . . . . Investigation 3 | . . . . . . 3 . . . . . . Extermination 9 | . . . . . . 7 . 2 . . . . Reinforcement 6 | . . . . . . 5 . 1 . . . . Assault . | . . . . . . . . . . . . . Garrison 1 | . . . . . . 1 . . . . . . Intercept . | . . . . . . . . . . . . . Searches Triggered . | . . . . . . . . . . . . . Construction Impeded 2 | . . . . . . 1 . 1 . . . . Haulers Reinforced 2 | . . . . . . 2 . . . . . . Active Scanning Responses . | . . . . . . . . . . . . . Cargo Convoy Interrupts . | . . . . . . . . . . . . . Stealth | -11 -10 -10 -10 -9 -8 -7 -7 -7 -7 -7 -7 -7 --------- Run | Jun Mat Min Exi Min Mat Fac Was Fac Low Low Zio Dee Distress Signals 4 | . . . . 1 . 3 . . . . . . Communications Jammed . | . . . . . . . . . . . . . Distress Signals . | . . . . . . . . . . . . . Times Spotted 129 | . 4 5 3 . 1 37 6 17 2 . . 54 Peak Tracking Total 37 | . 3 3 5 . 1 4 6 4 2 . . 37 Tactical Retreats 1 | . . . . . . 1 . . . . . . Traps | -11 -10 -10 -10 -9 -8 -7 -7 -7 -7 -7 -7 -7 ------- Run | Jun Mat Min Exi Min Mat Fac Was Fac Low Low Zio Dee Traps Triggered 8 | . . . . . . 6 . 2 . . . . Indirectly . | . . . . . . . . . . . . . Trap Hack Attempts . | . . . . . . . . . . . . . Triggered . | . . . . . . . . . . . . . Disarmed . | . . . . . . . . . . . . . Reprogrammed . | . . . . . . . . . . . . . Reused . | . . . . . . . . . . . . . Traps Extracted . | . . . . . . . . . . . . . Installed . | . . . . . . . . . . . . . Triggered . | . . . . . . . . . . . . . Machines | -11 -10 -10 -10 -9 -8 -7 -7 -7 -7 -7 -7 -7 ---------- Run | Jun Mat Min Exi Min Mat Fac Was Fac Low Low Zio Dee Machines Disabled 13 | . . 2 . . . 5 . 6 . . . . Max in Single Turn 4 | . . . . . . 1 . 4 . . . . Machines Repaired . | . . . . . . . . . . . . . Machines Sabotaged . | . . . . . . . . . . . . . Overloaded Fab Kills . | . . . . . . . . . . . . . Hacking | -11 -10 -10 -10 -9 -8 -7 -7 -7 -7 -7 -7 -7 --------- Run | Jun Mat Min Exi Min Mat Fac Was Fac Low Low Zio Dee Machines Accessed 18 | . 2 . 1 . 1 9 . 5 . . . . Terminals 11 | . 2 . . . 1 5 . 3 . . . . Fabricators 2 | . . . . . . 2 . . . . . . Repair Stations 3 | . . . . . . 2 . 1 . . . . Recycling Units . | . . . . . . . . . . . . . Scanalyzers . | . . . . . . . . . . . . . Garrison Access 1 | . . . . . . . . 1 . . . . Total Hacks 48 | . 6 . 1 . 1 29 . 11 . . . . Successful 17 | . 2 . 1 . 1 11 . 2 . . . . Failed 31 | . 4 . . . . 18 . 9 . . . . Catastrophic 6 | . 2 . . . . 2 . 2 . . . . Database Lockouts . | . . . . . . . . . . . . . Manual 25 | . 6 . 1 . . 13 . 5 . . . . Terminals 35 | . 6 . . . 1 21 . 7 . . . . Fabricators 4 | . . . . . . 4 . . . . . . Repair Stations 6 | . . . . . . 4 . 2 . . . . Recycling Units . | . . . . . . . . . . . . . Scanalyzers . | . . . . . . . . . . . . . Garrison Access 2 | . . . . . . . . 2 . . . . Terminal Hacks 9 | . 1 . 1 . 1 5 . 1 . . . . Branch Access Points 2 | . . . . . . 1 . 1 . . . . Terminal Index 1 | . 1 . . . . . . . . . . . Alert Level 2 | . . . . . 1 1 . . . . . . Unreport Threat 1 | . . . . . . 1 . . . . . . Locate Traps 1 | . . . . . . 1 . . . . . . Registered Components 1 | . . . . . . 1 . . . . . . EX-Prototype ID Bank 1 | . . . 1 . . . . . . . . . Fabricator Hacks 1 | . . . . . . 1 . . . . . . Network Status 1 | . . . . . . 1 . . . . . . Repair Station Hacks 2 | . . . . . . 2 . . . . . . Scan Component 1 | . . . . . . 1 . . . . . . Repair 1 | . . . . . . 1 . . . . . . Recycling Unit Hacks . | . . . . . . . . . . . . . Scanalyzer . | . . . . . . . . . . . . . Garrison Access Hacks . | . . . . . . . . . . . . . Unauthorized Hacks 5 | . 1 . . . . 3 . 1 . . . . Terminals 4 | . 1 . . . . 2 . 1 . . . . Botnet 4 | . 1 . . . . 2 . 1 . . . . Fabricators 1 | . . . . . . 1 . . . . . . Haulers 1 | . . . . . . 1 . . . . . . Repair Stations . | . . . . . . . . . . . . . Recycling Units . | . . . . . . . . . . . . . Scanalyzers . | . . . . . . . . . . . . . Garrison Access . | . . . . . . . . . . . . . Data Cores Recovered . | . . . . . . . . . . . . . Used . | . . . . . . . . . . . . . Hacking Detections 15 | . 2 . . . . 8 . 5 . . . . Full Trace Events 2 | . . . . . . 2 . . . . . . Feedback Events . | . . . . . . . . . . . . . Feedback Blocked . | . . . . . . . . . . . . . Robot Schematics Acquired 2 | . . . . . . . . . . . 2 . Robots Built . | . . . . . . . . . . . . . Authchips . | . . . . . . . . . . . . . Time . | . . . . . . . . . . . . . Total Robot Build Rating . | . . . . . . . . . . . . . Part Schematics Acquired 15 | . . . . . . . . . . . 15 . Parts Built . | . . . . . . . . . . . . . Authchips . | . . . . . . . . . . . . . Time . | . . . . . . . . . . . . . Total Part Build Rating . | . . . . . . . . . . . . . Parts Repaired 1 | . . . . . . 1 . . . . . . Time 26 | . . . . . . 26 . . . . . . Parts Recycled . | . . . . . . . . . . . . . Recycled Matter . | . . . . . . . . . . . . . Retrieved Matter . | . . . . . . . . . . . . . Retrieved Components . | . . . . . . . . . . . . . Parts Scanalyzed . | . . . . . . . . . . . . . Part Schematics Acquired . | . . . . . . . . . . . . . Parts Damaged . | . . . . . . . . . . . . . Bothacking | -11 -10 -10 -10 -9 -8 -7 -7 -7 -7 -7 -7 -7 ------------ Run | Jun Mat Min Exi Min Mat Fac Was Fac Low Low Zio Dee Used RIF Installer . | . . . . . . . . . . . . . Robots Hacked . | . . . . . . . . . . . . . Non-combat . | . . . . . . . . . . . . . Combat . | . . . . . . . . . . . . . Robot Hacks Applied . | . . . . . . . . . . . . . Relay Couplers Released 3 | . . . . . . 3 . . . . . . Programmers 3 | . . . . . . 3 . . . . . . Fabnet Peak Effective % . | . . . . . . . . . . . . . Robots Rewired . | . . . . . . . . . . . . . Allies Hacked . | . . . . . . . . . . . . . Hacks Repelled . | . . . . . . . . . . . . . Allies | -11 -10 -10 -10 -9 -8 -7 -7 -7 -7 -7 -7 -7 -------- Run | Jun Mat Min Exi Min Mat Fac Was Fac Low Low Zio Dee Total Allies 4 | . . 1 . 3 . . . . . . . . Largest Group 3 | . . 1 . 3 2 1 . . . . . . Highest-Rated Group 40 | . . 31 . 40 24 16 . . . . . . Highest-Rated Ally 31 | . . 31 . 16 16 16 . . . . . . Total Orders 3 | . . . . 2 . 1 . . . . . . STAY 2 | . . . . 1 . 1 . . . . . . FOLLOW 1 | . . . . 1 . . . . . . . . Ally Attacks 7 | . . 5 . . 1 1 . . . . . . Total Damage 154 | . . 123 . . 15 16 . . . . . . Kills 4 | . . 3 . . 1 . . . . . . . Allies Corrupted . | . . . . . . . . . . . . . Allies Melted . | . . . . . . . . . . . . . Intel | -11 -10 -10 -10 -9 -8 -7 -7 -7 -7 -7 -7 -7 ------- Run | Jun Mat Min Exi Min Mat Fac Was Fac Low Low Zio Dee Robot Analysis Total . | . . . . . . . . . . . . . Derelict Logs Recovered 5 | . . 1 . 1 . . . . 1 1 1 . Drone Launches . | . . . . . . . . . . . . . Drone Recoveries . | . . . . . . . . . . . . . Exploration | -11 -10 -10 -10 -9 -8 -7 -7 -7 -7 -7 -7 -7 ------------- Run | Jun Mat Min Exi Min Mat Fac Was Fac Low Low Zio Dee Turns Passed 11745 | 76 141 289 376 308 275 3866 104 1167 552 340 1498 2753 Spaces Moved 7070 | 62 95 212 394 192 208 2083 76 716 381 291 1129 1231 Core 185 | 16 . . 168 . . . . . . . . 1 Treads . | . . . . . . . . . . . . . Legs 1797 | 46 95 212 226 192 208 52 5 . . . . 761 Wheels 5088 | . . . . . . 2031 71 716 381 291 1129 469 Hover . | . . . . . . . . . . . . . Flight . | . . . . . . . . . . . . . Fastest Speed 50 | 50 120 120 50 120 120 111 115 115 115 115 115 100 Average Speed 128 | 101 120 120 90 120 120 119 132 125 115 115 127 171 Slowest Speed 350 | 120 120 120 120 120 120 266 266 130 130 115 130 350 Overloaded Moves . | . . . . . . . . . . . . . Propulsion Burnouts . | . . . . . . . . . . . . . Robots Hopped . | . . . . . . . . . . . . . Cave-ins Triggered . | . . . . . . . . . . . . . Exploration Rate (%) 46 | 4 21 36 71 43 20 54 67 23 55 51 82 75 Regions Visited 12 Branch Regions 7 Pre-discovered Areas 1 | . . . . . . . . . . . 1 . Known Exits Taken 4 | . . . . 1 . . . 1 1 1 . . Unknown Exits Taken 6 | 1 1 1 1 . 1 . . . . . 1 . Scrap Searched 9 | . . 1 . 1 . . . . 4 1 2 . Spaces Dug 51 | . . . . 16 . 23 . 1 2 . 3 6 Terrain Destroyed 275 | . . 17 . 52 2 44 . 63 2 . 3 92 Melee 24 | . . . . . . 20 . . 1 . 3 . Projectile 43 | . . . . . 2 15 . 10 1 . . 15 AOE 208 | . . 17 . 52 . 9 . 53 . . . 77 Terrain Rammed . | . . . . . . . . . . . . . Walls Destroyed . | . . . . . . . . . . . . . Machines Disabled . | . . . . . . . . . . . . . Actions | -11 -10 -10 -10 -9 -8 -7 -7 -7 -7 -7 -7 -7 --------- Run | Jun Mat Min Exi Min Mat Fac Was Fac Low Low Zio Dee Total 9273 | 72 109 237 417 254 228 3228 80 925 483 296 1166 1778 Wait 1517 | . . 9 . 51 3 860 . 123 89 6 15 361 Move 7059 | 61 94 211 393 191 207 2083 75 715 380 290 1128 1231 Hop . | . . . . . . . . . . . . . Pick Up 96 | 3 6 2 5 2 4 30 2 12 2 . 4 24 Fast Attach 64 | 7 . 2 6 1 3 23 . 4 . . 2 16 Attach 53 | . . . 3 . 2 6 1 6 2 . 2 31 Detach 32 | 1 . . 2 . 1 12 . 2 . . . 14 Swap 52 | . . 3 . 2 1 25 . 8 3 . 1 9 Drop 93 | . 2 4 8 . 4 37 2 11 2 . 5 18 Fire 236 | . 7 5 . 7 3 103 . 33 4 . . 74 Melee 46 | . . . . . . 36 . . 1 . 9 . Ram 16 | . . . . . . 13 . 3 . . . . Kick 1 | . . 1 . . . . . . . . . . Crush . | . . . . . . . . . . . . . Escape Stasis 8 | . . . . . . . . 8 . . . . Rewire . | . . . . . . . . . . . . . Trap . | . . . . . . . . . . . . . Miscellaneous . | . . . . . . . . . . . . . Route ------- -11/Junkyard -10/Materials -10/Mines (discovered 2 exits: [*Mat] / *Exi) -10/Exiles (discovered 2 exits: [*Min x2]) -9/Mines -8/Materials -7/Factory (discovered 5 exits: [*Fac] / *Sto x2 / Low x2) -7/Waste -7/Factory (discovered 4 exits: [*Fac] / Sto / *Low x2) -7/Lower Caves -7/Lower Caves -7/Zion (discovered 2 exits: [*Dee] / [*Pro]) -7/Deep Caves (discovered 1 exit: [*Pro]) History --------- Turn | Location | Event 4 | -11/Junkyard | Discovered new exit (range 15) 77 | -11/Junkyard | Entered Materials 190 | -10/Materials | Discovered new exit (range 9) 218 | -10/Materials | Entered Mines 221 | -10/Mines | Received a Mining Laser from a helpful Derelict 306 | -10/Mines | Build established: Mutant 408 | -10/Mines | Discovered new exit (range 10) 463 | -10/Mines | Learned Materials garrison access intel 499 | -10/Mines | Deemed a non-threat by the Exiles lab entrance 499 | -10/Mines | Discovered new exit (range 5) 507 | -10/Mines | Entered Exiles 525 | -10/Exiles | Discovered new exit (range 15) 537 | -10/Exiles | Met 8R-AWN 557 | -10/Exiles | Met EX-HEX 589 | -10/Exiles | Met EX-BIN 606 | -10/Exiles | Aligned with FarCom system 607 | -10/Exiles | Given EX-Vault access code 638 | -10/Exiles | Opened EX-Vault 667 | -10/Exiles | Warned to stay clear of 0b10 Research branches 687 | -10/Exiles | Exiles lab attacked by MAIN.C 769 | -10/Exiles | Found Latent Energy Streamer 873 | -10/Exiles | Discovered new exit (range 10) 883 | -10/Exiles | Left Exiles lab with Latent Energy Streamer 883 | -10/Exiles | Entered Mines 890 | -9/Mines | Received a Rocket Launcher from a helpful Derelict 970 | -9/Mines | Identified exit to Materials 977 | -9/Mines | Assembled infested the area 982 | -9/Mines | Assisted by a Guerilla fighting off Assembled 990 | -9/Mines | Found a hidden stash of uninstalled traps 1056 | -9/Mines | Assisted by bots powering up and referring to "LRC-V3" 1191 | -9/Mines | Entered Materials 1191 | -8/Materials | Accompanied by 2 allies 1191 | -8/Materials | Evolved 4 slots: Propulsion x2, Utility x2 1192 | -8/Materials | Loaded intel: 1 garrison access location 1425 | -8/Materials | Discovered new exit (range 10) 1466 | -8/Materials | Entered Factory 1466 | -7/Factory | Accompanied by 1 ally 1466 | -7/Factory | Evolved 2 slots: Propulsion x1, Utility x1 1885 | -7/Factory | Garrison activated, responded to threat 2577 | -7/Factory | Repaired Broken Hvy. Particle Cannon 4064 | -7/Factory | Discovered new exit (range 14) 4416 | -7/Factory | Identified exit to Storage 4416 | -7/Factory | Identified exit to Lower Caves 5332 | -7/Factory | Sucked down chute 5332 | -7/Factory | Entered Waste 5347 | -7/Waste | EMP discharged 5347 | -7/Waste | System corruption reached 10% 5354 | -7/Waste | Spotted C-40 Crusher 5355 | -7/Waste | Spotted C-40 Crusher 5356 | -7/Waste | Spotted C-40 Crusher 5356 | -7/Waste | Spotted C-40 Crusher 5363 | -7/Waste | Spotted C-40 Crusher 5393 | -7/Waste | Spotted C-40 Crusher 5398 | -7/Waste | Crushed by Compactor (1 part destroyed, 1 dropped) 5409 | -7/Waste | Crushed by Compactor (0 parts destroyed, 1 dropped) 5426 | -7/Waste | Discovered new exit (range 10) 5436 | -7/Waste | Entered Factory 5879 | -7/Factory | Discovered new exit (range 15) 6603 | -7/Factory | Entered Lower Caves 6604 | -7/Lower Caves | Encountered a Warlord checkpoint 6618 | -7/Lower Caves | Learned Factory terminal intel 6929 | -7/Lower Caves | Build established: Scavenger-Skirmisher 7147 | -7/Lower Caves | Discovered new exit (range 8) 7154 | -7/Lower Caves | Identified exit to Lower Caves 7155 | -7/Lower Caves | Entered another Lower Caves area 7245 | -7/Lower Caves | Build established: Scavenger-Assassin 7489 | -7/Lower Caves | Discovered new exit (range 5) 7494 | -7/Lower Caves | Identified exit to Zion 7495 | -7/Lower Caves | Entered Zion 7539 | -7/Zion | System corruption cleaned by Quarantine Array 7733 | -7/Zion | Discovered new exit (range 13) 7970 | -7/Zion | Build established: Mutant 8062 | -7/Zion | Learned location of Quarantine (-3) 8143 | -7/Zion | Found Prototype Device 8192 | -7/Zion | Given the Hacking Drone Bay 8673 | -7/Zion | Discovered new exit (range 4) 8676 | -7/Zion | Saw the warning signs outside the Deep Caves entrance 8819 | -7/Zion | Found CR-A16's Pointy Stick 8848 | -7/Zion | Found Prototype Device 8993 | -7/Zion | Entered Deep Caves 9099 | -7/Deep Caves | Attacked by Z-Imprinter 9129 | -7/Deep Caves | Core integrity fell below 50% 9139 | -7/Deep Caves | Destroyed Z-Imprinter 9169 | -7/Deep Caves | Lost 5 parts (1p1n2u1w) 9189 | -7/Deep Caves | Identified Mobile Refinery Mk. CCLXVII 9255 | -7/Deep Caves | Found Prototype Protection 9255 | -7/Deep Caves | Identified Zio. Heavy Carapace 9354 | -7/Deep Caves | Lost 9 parts (2n5u2w) 9403 | -7/Deep Caves | Found Prototype Protection 9528 | -7/Deep Caves | Identified Zio. Weapon Casing 9903 | -7/Deep Caves | Found Zio. Weapon Casing 10153 | -7/Deep Caves | Discovered new exit (range 6) 10514 | -7/Deep Caves | Found Zio. Weapon Casing 10699 | -7/Deep Caves | Spotted as-59100 10762 | -7/Deep Caves | Destroyed as-59100 10788 | -7/Deep Caves | Lost 3 parts (1n2u) 10828 | -7/Deep Caves | Spotted as-77001 10863 | -7/Deep Caves | Lost 3 parts (1p2u) 10876 | -7/Deep Caves | Destroyed as-77001 10883 | -7/Deep Caves | Found GOLEM Unit 10901 | -7/Deep Caves | Lost 3 parts (1n1u1w) 11706 | -7/Deep Caves | Triggered Deep Caves wall 11706 | -7/Deep Caves | Spotted AS-99931 11709 | -7/Deep Caves | Core integrity fell below 20% 11714 | -7/Deep Caves | Spotted AS-86426 11719 | -7/Deep Caves | Destroyed AS-99931 11738 | -7/Deep Caves | Destroyed AS-86426 11746 | -7/Deep Caves | Destroyed self with Latent Energy Streamer Last Messages --------------- 11723_ Rocket Launcher temporarily disabled. 11728_ as-61497 released from Mobile Assembly Unit. 11729_ Zio. Light DM Reactor destroyed. 11730_ Dropped Zio. Biocell. 11730_ Acquired Zio. Biocell. 11731_ Arm. Huge Wheel destroyed. 11734_ as-58863 destroyed. 11734_ as-35804 destroyed. 11734_ Destroyed Asb. F-torch. 11734_ as-49720 destroyed. 11734_ as-61497 destroyed. 11734_ as-80390 destroyed. 11738_ as-95956 released from Mobile Assembly Unit. 11738_ Unknown Storage fried. 11738_ AS-86426 destroyed. 11741_ Rocket Launcher destroyed. 11741_ Destroyed Rocket Launcher. 11742_ Knocked back. 11744_ System corrupted: Energy discharge (-190). 11746_ as-95956 destroyed. Map ----- +----------------------------------------------------+ | ??????????????? ????????????????????????? | | ????????????? #??????????????????????? | | ??????????? # ?????????????????????? | | ??????????? #???##???????????????? | | ?????????? # ?? #???????????????? | | ?????????? ?# #???????????????? | | ?????????"" ?# #???????????????? | | ????????? ## #???????????????# | | ????????? # #####?????????### | | ????????" ?????###?## | | ????????# #?????## ## | | ?????????" #?????## | | ?????????" ##?????# | | ?????????" h ##????# | | ?????????" ] ### #????### | | ????????"" #?# #??????## | | ??????### ! ### ####????## # | | ??"""""! ! # % #?????# # | | ??" !% ####?????## ## | | ??" ###??????# ##? | | ??" #??????# #?# | | ??" ###??????# ### | | ??" ;#?????### ## | | ??" ! #????##! ### | | ??" % s #????# ##?# | | ????""" @ ! #????# #??? | | ??????### = #????# #??? | | ????????"" ####### #??? | | ?????????" = ## ###% #### | | ?????????" s ## ][ ## | | ?????????" g / ## #< | | ?????????" = / ;# | | ????????# = / ; # | | ????????" M ### | | ????????" s ##### | | ????????" l! %! | | ????????""" ! ! # | | ?????????? ! ## | | ?????????? ### # | | ??????????? #?## # | | ??????????? ##??### # | | ??????????? # # #?????## | | ???????????? #### ## ## ##??????### | | ???????????? #????# ?# ?###?????????#### | | ???????????????????#??# ????????????????? | | ???????????????????????#????????????????? | | | | | | | | | +----------------------------------------------------+ Best States ------------- Heat Dissipation 75 Energy Generation 27 Energy Capacity 700 Matter Stores 300 Matter Capacity 300 Sight Range 20 Robot Scan Range 15 Terrain Scan Density 10 Armor Coverage 1200 Weapon Shielding 100 Phase Shifting 5 Evasion (%) 55 Targeting Accuracy 8 Defensive Hacking 10 Item Schematics ----------------- Adv. Terrain Scanner | -7/Zion | Archive Energy Filter | -7/Zion | Archive Wave Gun | -7/Zion | Archive Hvy. Beamcaster | -7/Zion | Archive Mak. Spear | -7/Zion | Archive Arm. Leg | -7/Zion | Archive Adv. Assault Cannon | -7/Zion | Archive Coil Gun | -7/Zion | Archive Power Sword | -7/Zion | Archive Gauss Cannon | -7/Zion | Archive Xenon Bombardment Thruster | -7/Zion | Archive Adv. Sensor Array | -7/Zion | Archive Microactuators | -7/Zion | Archive Beamcaster | -7/Zion | Archive Arm. Huge Wheel | -7/Zion | Archive Robot Schematics ------------------ S-27 Virus | -7/Zion | Archive A-02 Transporter | -7/Zion | Archive Fabricated ------------ Nothing Alien Tech Used ----------------- None Achievements -------------- None Challenges ------------ None Game ------ Seed ChargeEnhancedProtomatter Manual? 0 Play Time 01:37:18 Cumulative 345.7 hours Start 2023.07.24 @ 21:55:24 End 2023.07.30 @ 20:51:54 Sessions 2 Manual Loads 0 Difficulty Rogue Special Mode None Game No. 136 Rogue 120 Adventurer 8 Explorer 8 Win Type - Total 25 Types 12/1/8/1/1/1/1/0/0 Lore% 89 Gallery% 87 Achievement% 77 Wizard Run 0 Options --------- ASCII 1 Keyboard 1 Movement Vi Keybinds 0 Fullscreen 2 Font 18/SmallcapsGlow Map View 76x50 Tactical HUD 1 Map Filters NONE Filters NONE Steam 0 RUN: 87ba91ba-8717-4295-9d27-fd00a3590c71